[Event "Sardinia World Festival-A 2024"]
[Site "Orosei"]
[Date "2024.04.27"]
[Round "1.1"]
[White "Fedoseev, Vladimir"]
[Black "Yilmaz, Baver"]
[Result "1-0"]
[ECO "D30"]
[WhiteElo "2690"]
[BlackElo "2277"]
[Annotator "TA"]
[PlyCount "83"]
[EventDate "2024.04.26"]
[EventType "swiss"]
[EventCountry "ITA"]
[SourceTitle "playchess.com"]
[Source "ChessBase"]
[SourceQuality "1"]
[TimeControl "40/5400+30:1800+30"]

{[%evp 9,83,22,29,22,21,25,26,20,28,16,23,12,18,0,9,9,16,16,26,24,33,18,21,11,20,27,27,21,25,14,25,14,18,22,18,11,11,11,28,34,41,41,59,50,144,70,108,99,97,102,169,96,128,131,119,121,119,118,134,129,250,254,1777,1427,1900,1702,5357,5357,29974,29975,29974,29976,29966,29968,5728,5724]} 1. d4 {[%emt 0:00:30]} d5 {[%emt 0:00:18]} 2. c4 {[%emt 0:00:00]} c6 {[%emt 0:01:08]} 3. Nf3 {[%emt 0:00:15]} Nf6 {[%emt 0:00:47]} 4. e3 {[%emt 0:00:21]} e6 {[%emt 0:01:01]} 5. b3 {[%emt 0:00:43]} Nbd7 {[%emt 0:01:01]} 6. Bd3 {[%emt 0:00:30]} b6 {[%emt 0:01:11]} 7. O-O {[%emt 0:04:46]} Bb7 {[%emt 0:02:49]} 8. Qe2 {[%emt 0:01:16] White has an edge.} Rc8 {[%emt 0:05:53]} 9. Rd1 {[%emt 0:06:48]} Bd6 {[%emt 0:01:55]} 10. Nc3 {[%emt 0:04:38]} O-O {[%emt 0:06:38]} 11. Bb2 {[%emt 0:01:16]} Re8 {[%emt 0:03:35]} 12. a4 {[%emt 0:04:15]} a5 {[%emt 0:12:19]} 13. Rac1 {[%emt 0:07:30]} Bb8 {[%emt 0:08:09]} 14. Ba3 {[%emt 0:02:45]} g6 {[%emt 0:07:04]} 15. cxd5 {[%emt 0:08:59]} exd5 {[%emt 0:01:19]} 16. Ba6 {[%emt 0:00:24]} Bxa6 {[%emt 0:04:37]} 17. Qxa6 {[%emt 0:00:02]} Ne4 {[%emt 0:03:48]} 18. Nxe4 {[%emt 0:05:47]} Rxe4 {[%emt 0:03:35]} 19. Rc3 {[%emt 0:03:47]} Re6 {[%emt 0:03:05]} 20. Rdc1 {[%emt 0:05:05]} Bd6 {[%emt 0:06:59]} 21. Bxd6 {[%emt 0:01:28]} (21. Rxc6 Rxc6 (21... Bxa3 $2 {perishes.} 22. Rxc8 $18) 22. Rxc6 Bxh2+ (22... Bxa3 $2 23. Rc8 $18) 23. Nxh2 Rxc6 $19) 21... Rxd6 {[%emt 0:00:07]} 22. h3 {[%emt 0:02:08]} Kg7 {[%emt 0:02:50]} 23. Qe2 {[%emt 0:02:09]} Re6 {[%emt 0:01:47]} 24. Ne1 {[%emt 0:03:10]} Qe7 {[%emt 0:03:05]} 25. Nd3 {[%emt 0:01:07]} Qd6 {[%emt 0:01:49]} 26. Qb2 {[%emt 0:00:38]} Nf6 {[%emt 0:07:33]} (26... Kg8 $14) 27. R3c2 {[%emt 0:02:19]} ({White should play} 27. Ne5 $1 $16) 27... Kg8 {[%emt 0:03:37]} 28. b4 {[%emt 0:05:00]} axb4 {[%emt 0:00:15]} 29. Qxb4 {[%emt 0:00:15]} Nd7 {[%emt 0:01:10]} (29... Qxb4 $16 {was necessary.} 30. Nxb4 Ra8) 30. a5 {[%emt 0:03:49]} (30. Qb3 $1 $18) 30... bxa5 {[%emt 0:02:35]} 31. Qxa5 {[%emt 0:00:10]} Qf8 {[%emt 0:02:25]} 32. Nb4 {[%emt 0:11:20][%cal Rb4c6] White is more active.} Ra8 {[%emt 0:01:01] [#]} 33. Qc7 {[%emt 0:00:07]} Qxb4 {[%emt 0:00:41]} 34. Qxd7 {[%emt 0:00:05]} Ra3 {[%emt 0:00:47]} (34... Rd6 $16 35. Qc7 Rdd8 36. Rxc6 (36. Qxc6 Qe7 $16) 36... Qf8) 35. Rxc6 $18 {[%emt 0:01:04]} Qd2 $2 {[%emt 0:00:30]} (35... Rxc6 36. Qxc6 Ra5 37. Qe8+ Qf8) 36. Qc8+ {[%emt 0:01:12]} Kg7 {[%emt 0:00:16][%cal Bg8g7,Bg7f6,Bf6g5,Bg5h6][%mdl 32]} 37. Rxe6 {[%emt 0:00:21] White threatens Re7 and mate.} Ra2 {[%emt 0:00:42] [#]} 38. Rf6 $3 {[%emt 0:04:14]} Kxf6 {[%emt 0:00:10]} (38... Qxc1+ 39. Qxc1) 39. Qh8+ {[%emt 0:00:04]} Kg5 {[%emt 0:00:15]} 40. Qe5+ {[%emt 0:00:04]} Kh6 {[%emt 0:00:32] [#]} 41. Qf4+ $1 {[%emt 0:30:06]} Kg7 {[%emt 0:30:16]} 42. Rc7 {[%emt 0:00:18] Weighted Error Value: White=0.07 (flawless) /Black=0.34.  Mistake:       	White=2     	Black=4      Inaccurate:     	---       	Black=2      OK:         	White=13    	Black=9      Best:        	White=2     	Black=1} 1-0

[Event "Sardinia World Festival-A 2024"]
[Site "Orosei"]
[Date "2024.04.27"]
[Round "1.2"]
[White "Nandhidhaa, P V"]
[Black "Sjugirov, Sanan"]
[Result "0-1"]
[ECO "C15"]
[WhiteElo "2276"]
[BlackElo "2689"]
[Annotator "TA"]
[PlyCount "64"]
[EventDate "2024.04.26"]
[EventType "swiss"]
[EventCountry "ITA"]
[SourceTitle "playchess.com"]
[Source "ChessBase"]
[SourceQuality "1"]
[TimeControl "40/5400+30:1800+30"]

{[%evp 11,64,8,12,35,32,8,34,43,71,-37,-38,-40,-35,-41,-18,-49,-20,-97,-78,-84,-72,-101,-48,-94,-112,-100,-100,-153,-78,-210,-203,-275,-185,-178,-177,-178,-207,-403,-403,-524,-516,-487,-525,-512,-508,-1147,-1118,-1196,-612,-589,-449,-437,-432,-2394,-547]} 1. e4 {[%emt 0:00:15]} e6 {[%emt 0:00:20]} 2. d4 {[%emt 0:00:16]} d5 {[%emt 0:00:10]} 3. Nc3 {[%emt 0:00:46]} Bb4 {[%emt 0:01:09][%cal Bf8b4,Bb4a5,Ba5b6][%mdl 32]} 4. Nge2 {[%emt 0:03:04]} Nc6 {[%emt 0:04:56]} 5. a3 {[%emt 0:02:33]} Ba5 {[%emt 0:00:12]} 6. b4 {[%emt 0:06:02]} Bb6 {[%emt 0:00:29]} 7. Bb2 {[%emt 0:04:29]} Nge7 {[%emt 0:24:52][%cal Bg8e7,Be7g6,Bg6e5,Be5g4][%mdl 32]} 8. e5 {[%emt 0:23:15]} Ng6 {[%emt 0:23:06]} 9. Na4 {[%emt 0:04:17] White is slightly better.} f6 {[%emt 0:02:18][%cal Rf6e5]} 10. Ng3 {[%emt 0:09:46]} (10. h4 $16) 10... fxe5 {[%emt 0:01:39]} 11. Nxb6 {[%emt 0:00:11]} axb6 {[%emt 0:00:22]} 12. dxe5 {[%emt 0:00:40]} O-O {[%emt 0:03:35]} (12... Ngxe5 13. b5 (13. Bxe5 Nxe5 14. Qh5+ Nf7 $17) 13... Qf6 14. bxc6 $16) (12... Ncxe5 $6 13. f4 $16 (13. Bxe5 Nxe5 14. Be2 Qd6 $17)) 13. h4 {[%emt 0:05:54]} Ngxe5 {[%emt 0:06:58] ...Qf6 would now be deadly.} (13... Nxh4 $2 14. Qh5 Rf4 15. Ne2 $18) 14. Qd2 {[%emt 0:04:44]} (14. Nh5 $1 $11 g6 15. f4) 14... Ng4 $1 $17 {[%emt 0:06:56] Black is more active. A dynamic duo of knights.} ({Much weaker is} 14... Qf6 $6 15. O-O-O $11) 15. f3 {[%emt 0:03:07] [#]} Nf6 {[%emt 0:00:06]} 16. O-O-O {[%emt 0:00:51]} e5 {[%emt 0:00:11]} (16... Qd6 $17 17. Qe1 e5) 17. Bb5 {[%emt 0:03:56] [#]} (17. Re1 $15) 17... Nd4 $1 {[%emt 0:00:47]} 18. Bd3 {[%emt 0:05:29]} c5 {[%emt 0:01:30]} 19. Rhe1 {[%emt 0:00:21] [#]} (19. Qg5 $142) 19... Qc7 {[%emt 0:04:16]} (19... Re8 $142 $1 {Strongly threatening ...Qc7.} 20. Kb1 Bd7) 20. Re3 {[%emt 0:04:46] This move loses the game for White.} (20. Qg5 $17 {might work better.}) 20... Bd7 $19 {[%emt 0:04:09]} 21. Kb1 {[%emt 0:00:28]} Ba4 {[%emt 0:03:27]} 22. Rde1 {[%emt 0:01:16]} Rfe8 {[%emt 0:01:51]} 23. c3 {[%emt 0:03:02]} Nb3 {[%emt 0:00:58]} 24. Qe2 {[%emt 0:00:28]} (24. Qd1 {is a better defense.}) 24... c4 {[%emt 0:00:36]} 25. Bf5 {[%emt 0:04:52]} d4 {[%emt 0:00:12] Black is clearly winning.} 26. cxd4 {[%emt 0:02:46]} exd4 {[%emt 0:00:22]} 27. Rxe8+ {[%emt 0:00:40]} Rxe8 {[%emt 0:00:05]} (27... Nxe8 28. Be6+ Kh8 29. Ne4 $17 (29. Nf5 $2 Rd8 $19)) 28. Be6+ {[%emt 0:00:07]} (28. Qf2 $142 c3 29. Rxe8+ Bxe8 30. Be6+ Bf7 31. Bxb3 Bxb3 32. Qxd4 cxb2 (32... Qxg3 $2 33. Qxc3 Bf7 34. Qd2 $19) 33. Qxb2) 28... Kh8 {[%emt 0:00:18]} 29. Qf2 {[%emt 0:01:45]} c3 {[%emt 0:00:26]} 30. Bxb3 {[%emt 0:00:44]} Bxb3 {[%emt 0:01:20]} 31. Rxe8+ {[%emt 0:01:25]} Nxe8 {[%emt 0:00:05]} 32. Qe1 {[%emt 0:00:20]} (32. Qxd4 $142 Qxg3 (32... cxb2 $2 33. Qxb2 Bf7 34. Ne4 $19) 33. Qxc3) 32... Bf7 {[%emt 0:00:32] Weighted Error Value: White=0.72/Black=0.45.  Mistake:       	White=8     	Black=3      Inaccurate:     	White=3     	Black=3      OK:         	White=7     	Black=6      Best:        	---       	Black=4      Strong:       	---       	Black=1} (32... cxb2 $142 {[%csl Gb3][%cal Rc7c2]} 33. Qxe8+ Bg8) 0-1

[Event "Sardinia World Festival-A 2024"]
[Site "Orosei"]
[Date "2024.04.27"]
[Round "1.3"]
[White "Shevchenko, Kirill"]
[Black "Perossa, Nicolas"]
[Result "1-0"]
[ECO "E92"]
[WhiteElo "2675"]
[BlackElo "2269"]
[Annotator "TA"]
[PlyCount "93"]
[EventDate "2024.04.26"]
[EventType "swiss"]
[EventCountry "ITA"]
[SourceTitle "playchess.com"]
[Source "ChessBase"]
[SourceQuality "1"]
[TimeControl "40/5400+30:1800+30"]

{[%evp 16,93,67,57,87,77,101,93,111,102,99,80,78,85,83,66,50,60,71,58,74,65,89,91,181,175,210,212,214,214,207,207,273,267,259,211,246,231,273,264,278,261,327,317,336,332,277,324,452,445,450,470,469,347,460,448,649,604,814,806,1143,997,1085,1068,1034,1061,1038,1004,835,829,1275,880,1394,1448,1777,1839,1337,1183,4129,1838]} 1. d4 {[%emt 0:00:07]} Nf6 {[%emt 0:00:06]} 2. c4 {[%emt 0:00:04]} g6 {[%emt 0:00:05]} 3. Nc3 {[%emt 0:00:11]} Bg7 {[%emt 0:00:07]} 4. e4 {[%emt 0:00:07]} d6 {[%emt 0:00:05]} 5. Be2 {[%emt 0:01:00]} O-O {[%emt 0:08:52]} 6. Be3 {[%emt 0:00:05]} c6 {[%emt 0:10:22]} 7. Nf3 {[%emt 0:01:47]} e5 {[%emt 0:01:34]} 8. d5 {[%emt 0:03:03]} cxd5 {[%emt 0:08:41]} 9. cxd5 {[%emt 0:00:12]} Na6 {[%emt 0:12:30][%cal Bb8a6,Ba6c5,Bc5a4,Ba4c3][%mdl 32]} 10. Nd2 {[%emt 0:01:58]} Bd7 {[%emt 0:06:12]} 11. O-O {[%emt 0:01:38]} Qb8 {[%emt 0:05:08] White is better.} 12. a3 {[%emt 0:02:05]} Rc8 {[%emt 0:02:14]} 13. Rc1 {[%emt 0:06:30]} Nc5 {[%emt 0:04:39]} 14. f3 {[%emt 0:21:02]} Na4 {[%emt 0:16:34]} 15. Qb3 {[%emt 0:09:29]} Nxc3 {[%emt 0:03:01]} 16. Rxc3 {[%emt 0:00:10]} Rxc3 {[%emt 0:07:07]} 17. Qxc3 {[%emt 0:00:20]} b5 {[%emt 0:01:45]} 18. Nb3 {[%emt 0:09:07]} Qd8 {[%emt 0:02:05] White now steadily converts the win.} 19. Rc1 {[%emt 0:22:52] White is much more active.} a5 {[%emt 0:06:40]} (19... a6 $16 {is a better defense.}) 20. Qc7 $18 {[%emt 0:00:23] Black must now prevent Qxd8+.} Qxc7 {[%emt 0:00:55]} 21. Rxc7 {[%emt 0:00:02]} b4 {[%emt 0:01:12]} 22. Nd2 {[%emt 0:03:02]} bxa3 {[%emt 0:00:44]} 23. bxa3 {[%emt 0:00:01]} Rc8 {[%emt 0:00:42]} 24. Rxc8+ {[%emt 0:00:44]} Bxc8 {[%emt 0:00:01]} 25. Kf2 {[%emt 0:00:08]} a4 {[%emt 0:01:06]} 26. Nc4 {[%emt 0:00:18]} Bd7 {[%emt 0:00:28]} 27. Nxd6 {[%emt 0:00:57]} Bf8 {[%emt 0:00:08]} 28. Bc5 {[%emt 0:00:26]} Be8 {[%emt 0:00:52]} 29. Ke1 {[%emt 0:01:34]} Nh5 {[%emt 0:00:33]} 30. g3 {[%emt 0:01:10]} f5 {[%emt 0:00:27]} 31. Kd2 {[%emt 0:05:10]} fxe4 {[%emt 0:00:26]} 32. Nxe4 {[%emt 0:01:44]} Bxc5 {[%emt 0:00:30]} 33. Nxc5 {[%emt 0:00:02][%mdl 4096] Endgame. KBN-KBN} Kf8 {[%emt 0:00:38]} 34. Bd1 {[%emt 0:00:34]} Nf6 {[%emt 0:00:20]} 35. d6 {[%emt 0:00:12] White is clearly winning.} (35. Bxa4 Bxa4 36. Nxa4 Nxd5 $18) (35. Nxa4 Nxd5 36. Nc3 Nc7 $16) 35... Bc6 {[%emt 0:00:09]} (35... Kf7 $142 36. Be2 (36. Bxa4 Bxa4 37. Nxa4 Nd7 $18) (36. Nxa4 Ke6 $18) 36... Bc6) 36. Bxa4 {[%emt 0:00:08]} Bxf3 {[%emt 0:00:18]} 37. Ne6+ {[%emt 0:00:03]} Kf7 {[%emt 0:00:25]} 38. Ng5+ {[%emt 0:00:05]} Kf8 {[%emt 0:00:02]} 39. Nxf3 {[%emt 0:00:05]} Ne4+ {[%emt 0:00:03]} 40. Ke3 {[%emt 0:00:07]} Nxd6 {[%emt 0:00:11]} 41. Nxe5 {[%emt 0:30:03]} Ke7 {[%emt 0:30:05]} 42. Bb3 {[%emt 0:00:05]} Nf5+ {[%emt 0:00:17]} 43. Ke4 {[%emt 0:00:06] [#] And now a4 would win.} Kd6 {[%emt 0:00:03]} 44. a4 {[%emt 0:00:04]} Kc5 {[%emt 0:00:05]} 45. Nd3+ {[%emt 0:00:04]} Kc6 {[%emt 0:00:05]} 46. Bg8 {[%emt 0:00:11]} h5 {[%emt 0:00:30]} 47. Ne5+ {[%emt 0:00:04] Weighted Error Value: White=0.11 (very precise) /Black=0.39.  Mistake:       	---       	Black=2      Inaccurate:     	---       	Black=4      OK:         	White=12    	Black=7      Best:        	White=2     	---} 1-0

[Event "Sardinia World Festival-A 2024"]
[Site "Orosei"]
[Date "2024.04.27"]
[Round "1.4"]
[White "Nurgaliyev, Sauat"]
[Black "Van Foreest, Jorden"]
[Result "1-0"]
[ECO "B47"]
[WhiteElo "2262"]
[BlackElo "2668"]
[Annotator "TA"]
[PlyCount "89"]
[EventDate "2024.04.26"]
[EventType "swiss"]
[EventCountry "ITA"]
[SourceTitle "playchess.com"]
[Source "ChessBase"]
[SourceQuality "1"]
[TimeControl "40/5400+30:1800+30"]

{[%evp 17,89,31,30,14,27,29,23,8,10,16,14,9,16,-14,0,0,0,0,0,0,0,0,10,20,13,0,0,0,71,55,59,60,123,116,122,22,16,26,20,26,27,29,122,127,138,150,143,145,191,177,175,176,225,207,243,227,282,290,292,280,304,314,316,249,577,329,376,208,597,596,627,599,567,574]} 1. e4 {[%emt 0:00:04]} c5 {[%emt 0:00:20]} 2. Nf3 {[%emt 0:00:16]} e6 {[%emt 0:00:16]} 3. d4 {[%emt 0:00:10]} cxd4 {[%emt 0:00:08]} 4. Nxd4 {[%emt 0:00:02]} Nc6 {[%emt 0:00:21]} 5. Nc3 {[%emt 0:00:07]} Qc7 {[%emt 0:00:08]} 6. g3 {[%emt 0:00:49]} a6 {[%emt 0:01:34]} 7. Bg2 {[%emt 0:00:08]} d6 {[%emt 0:01:32]} 8. O-O {[%emt 0:03:32]} Bd7 {[%emt 0:00:13]} 9. Nxc6 {[%emt 0:03:43]} Bxc6 {[%emt 0:01:12]} 10. Qe2 {[%emt 0:02:18][%cal Oc3d5]} Be7 {[%emt 0:02:38]} 11. a4 {[%emt 0:01:43]} Nf6 {[%emt 0:02:21]} 12. Bf4 {[%emt 0:00:53] White has an edge.} O-O {[%emt 0:01:37]} 13. Rfd1 {[%emt 0:01:45]} b6 {[%emt 0:06:01]} 14. e5 {[%emt 0:02:57]} dxe5 {[%emt 0:00:38]} 15. Qxe5 {[%emt 0:00:41]} Qb7 {[%emt 0:01:38]} (15... Qxe5 {simplifies} 16. Bxe5 Bxg2 17. Kxg2 Rfc8) 16. Bxc6 {[%emt 0:01:28]} Qxc6 {[%emt 0:00:07]} 17. Qc7 {[%emt 0:01:02]} Qxc7 {[%emt 0:10:34]} 18. Bxc7 {[%emt 0:00:06]} Bc5 {[%emt 0:00:05]} 19. Bd6 {[%emt 0:02:35]} Bxd6 {[%emt 0:06:37]} 20. Rxd6 {[%emt 0:00:06]} Rab8 {[%emt 0:00:03]} 21. a5 {[%emt 0:04:55]} bxa5 {[%emt 0:00:05]} 22. Ra2 {[%emt 0:00:03]} h5 {[%emt 0:00:27]} (22... Rbd8 $11 {remains equal.} 23. Rxa6 Rd2) 23. Rxa6 $16 {[%emt 0:02:07] White is more active.} (23. Rxa5 Rxb2 24. Nd1 Rxc2 25. Rdxa6 Nd5 $17) 23... Rfd8 {[%emt 0:00:10]} 24. R6xa5 {[%emt 0:02:38]} (24. R2xa5 Rd2 25. Ra8 Rxa8 26. Rxa8+ Kh7 $11) 24... Rd2 {[%emt 0:00:07] [#]} (24... Rdc8 $14) 25. b3 $1 {[%emt 0:04:30]} (25. Ra8 $6 Rxa8 26. Rxa8+ Kh7 $11) 25... g6 {[%emt 0:20:56]} 26. Ra8 {[%emt 0:06:29]} ({Better is} 26. Kf1 $16) 26... Rxa8 $11 {[%emt 0:00:07]} 27. Rxa8+ {[%emt 0:00:02][%mdl 4096] Endgame. KRN-KRN} Kg7 {[%emt 0:00:12]} 28. Ra2 {[%emt 0:00:10]} Ng4 {[%emt 0:00:47]} 29. Ne4 {[%emt 0:03:22]} Rd4 {[%emt 0:03:48] White now steadily converts the win.} (29... Re2 $11 30. h3 Re1+ 31. Kg2 Rxe4 32. hxg4 hxg4) 30. Ra4 $16 {[%emt 0:02:23]} Rd7 {[%emt 0:08:35]} 31. h3 {[%emt 0:04:12]} Ne5 {[%emt 0:00:05]} 32. Kg2 {[%emt 0:00:21] Inhibits Nf3.} Rc7 {[%emt 0:00:44]} (32... Kf8 $16 33. Rb4 Ke7) 33. c4 {[%emt 0:04:37]} Nd3 {[%emt 0:00:40]} 34. Ra5 {[%emt 0:02:44]} Rb7 {[%emt 0:02:05]} (34... Kf8 {was worth a try.} 35. Kf3 Ke7) 35. Rb5 $18 {[%emt 0:01:54]} Ra7 {[%emt 0:00:06]} 36. Kf3 {[%emt 0:04:36]} Rd7 {[%emt 0:04:45]} 37. Ke3 {[%emt 0:02:09]} Ne1 {[%emt 0:00:15]} 38. Rb6 {[%emt 0:09:07]} Nc2+ {[%emt 0:00:53]} 39. Kf4 {[%emt 0:00:27]} f6 {[%emt 0:01:58]} 40. c5 {[%emt 0:02:57]} (40. Rxe6 g5+ 41. Nxg5 fxg5+ 42. Kxg5 h4 $16) 40... Rd4 {[%emt 0:03:48]} (40... g5+ 41. Kf3 Nd4+ 42. Kg2 Kg6) 41. Rxe6 {[%emt 0:35:04][%cal Oe6d6] [#] Rd6! is the strong threat.} g5+ {[%emt 0:37:19]} 42. Kf3 {[%emt 0:00:19]} Ne1+ $2 {[%emt 0:02:32]} (42... Rb4 {is more resistant.} 43. Rd6 (43. Nxf6 $2 {is the wrong capture.} Nd4+ 44. Ke4 Nxe6+ 45. Kf5 Nxc5 $19) (43. Rxf6 Rxb3+ 44. Kg2 Rb4 $14) 43... Rxb3+ 44. Ke2 Rb2) 43. Ke2 {[%emt 0:02:37][%cal Oc5c6] Strongly threatening c6! White is clearly winning.} Kf7 {[%emt 0:05:07]} 44. Rxf6+ {[%emt 0:00:44]} Ke7 {[%emt 0:00:05]} 45. f3 {[%emt 0:00:10] Weighted Error Value: White=0.21 (precise) /Black=0.38.  Mistake:       	White=1     	Black=7      Inaccurate:     	White=2     	---        OK:         	White=17    	Black=10     Best:        	White=4     	Black=4      Strong:       	White=1     	---} (45. Nxg5 $2 {perishes.} Kxf6 46. f4 Nc2 $19) 1-0

[Event "Sardinia World Festival-A 2024"]
[Site "Orosei"]
[Date "2024.04.27"]
[Round "1.5"]
[White "Pichot, Alan"]
[Black "Van Zyl-Rudd, Jack"]
[Result "1-0"]
[ECO "B96"]
[WhiteElo "2644"]
[BlackElo "2261"]
[Annotator "TA"]
[PlyCount "77"]
[EventDate "2024.04.26"]
[EventType "swiss"]
[EventCountry "ITA"]
[SourceTitle "playchess.com"]
[Source "ChessBase"]
[SourceQuality "1"]
[TimeControl "40/5400+30:1800+30"]

{[%evp 16,76,25,16,15,0,-4,-3,-6,0,0,0,0,0,0,0,0,0,0,0,0,0,0,-9,117,99,144,145,148,146,143,145,157,149,155,152,155,145,166,164,205,189,227,199,195,195,499,277,274,126,379,368,856,844,2205,2205,2205,1970,1573,1386,2202,2198,29999]} 1. e4 {[%emt 0:00:04]} c5 {[%emt 0:03:22]} 2. Nf3 {[%emt 0:00:08]} d6 {[%emt 0:00:04]} 3. d4 {[%emt 0:00:16]} cxd4 {[%emt 0:00:04]} 4. Nxd4 {[%emt 0:00:09]} Nf6 {[%emt 0:00:08]} 5. Nc3 {[%emt 0:00:17]} a6 {[%emt 0:00:04]} 6. Bg5 {[%emt 0:01:38]} e6 {[%emt 0:00:29]} 7. f4 {[%emt 0:00:36]} h6 {[%emt 0:00:06]} 8. Bh4 {[%emt 0:00:08]} Qb6 {[%emt 0:00:05]} 9. a3 {[%emt 0:02:16]} Nbd7 {[%emt 0:00:16]} (9... Qxb2 $2 {perishes.} 10. Na4 $18) 10. Bc4 {[%emt 0:06:38]} e5 {[%emt 0:00:49]} 11. fxe5 {[%emt 0:08:04]} dxe5 {[%emt 0:00:07] The position is equal.} 12. Nf5 {[%emt 0:01:29] Threatens to win with Nd5.} g6 {[%emt 0:00:33]} 13. Nd5 {[%emt 0:01:45]} Nxd5 {[%emt 0:00:02]} 14. Qxd5 {[%emt 0:00:10]} Rh7 {[%emt 0:00:04]} 15. O-O-O $1 {[%emt 0:01:47][%cal Oh1f1] Strongly threatening Rhf1!} gxf5 {[%emt 0:00:19]} 16. exf5 {[%emt 0:00:09]} Be7 $1 {[%emt 0:07:02]} 17. Bxe7 $40 {[%emt 0:09:51][%mdl 128] Black needs to defend precisely.} ({Don't play} 17. f6 Bxf6 18. Bxf6 Qxf6 $17) 17... Kxe7 {[%emt 0:00:02]} 18. Rhf1 {[%emt 0:08:08][%cal Of5f6]} Kf8 {[%emt 0:08:02]} 19. Bb3 {[%emt 0:04:59]} Rg7 {[%emt 0:13:38] [#]} (19... Nf6 $11 {remains equal.} 20. Qxe5 Ng4) 20. Kb1 $1 $16 {[%emt 0:14:33][%cal Of5f6] And now f6! would win.} Qf6 {[%emt 0:19:32] [#]} 21. Ba4 $1 {[%emt 0:05:10] White is much more active.} Qb6 {[%emt 0:31:36]} ({Don't go for} 21... Nb6 $2 22. Qd8+ Qxd8 23. Rxd8+ Ke7 24. f6+ Kxd8 25. fxg7 $18) 22. Bxd7 {[%emt 0:10:16]} Bxd7 {[%emt 0:00:06]} 23. f6 {[%emt 0:00:14]} Rg6 {[%emt 0:01:12]} 24. Qxd7 {[%emt 0:00:08]} Rxf6 {[%emt 0:00:12]} 25. Rxf6 {[%emt 0:00:20]} Qxf6 {[%emt 0:00:02]} 26. Qxb7 {[%emt 0:00:09][%mdl 4096] Endgame. KQR-KQR} Re8 {[%emt 0:00:43]} 27. Qe4 {[%emt 0:02:57]} Re6 {[%emt 0:07:52]} 28. Rd3 {[%emt 0:01:09]} Qf2 {[%emt 0:00:59]} 29. Rf3 {[%emt 0:01:50]} Qg1+ {[%emt 0:00:32]} 30. Ka2 {[%emt 0:00:06]} Qxh2 $2 {[%emt 0:00:27]} (30... Qb6 31. b3 Qc6) 31. Qf5 {[%emt 0:13:23]} (31. Qh7 $142 {[%csl Gf3][%cal Rh7f7]} Qh5 32. Rb3) 31... Re7 $18 {[%emt 0:00:23]} 32. Rh3 {[%emt 0:00:22]} (32. Qg4 $18 {is more deadly. Hoping for Rg3.} e4 33. Rg3) 32... Qxg2 {[%emt 0:00:42][%mdl 8192] Black cannot hold the game after this.} (32... Qf4 $16 33. Qxf4 exf4) 33. Rxh6 {[%emt 0:00:08]} Qd5+ $2 {[%emt 0:04:28]} (33... Qg7 34. Rxa6 Qg2) 34. b3 {[%emt 0:01:07]} Rc7 {[%emt 0:01:33] Wards off Qc8+} 35. Rh8+ {[%emt 0:00:41]} Ke7 {[%emt 0:01:34]} 36. Qg5+ {[%emt 0:00:52]} Kd6 {[%emt 0:00:14]} 37. Qd8+ {[%emt 0:00:35]} Rd7 {[%emt 0:01:04]} 38. Rh6+ {[%emt 0:00:15]} Kc5 {[%emt 0:00:25]} 39. Qb6# {[%emt 0:00:59] Weighted Error Value: White=0.24 (precise) /Black=0.59.  Loses game:     	---       	Black=1      Mistake:       	White=2     	Black=3      Inaccurate:     	---       	Black=2      OK:         	White=8     	Black=9      Best:        	White=4     	Black=2      Strong:       	White=2     	Black=1} 1-0